[Event "Polofinale MCR junioru 2023"]
[Site "Czech Republic"]
[Date "2023.11.13"]
[Round "3.14"]
[White "Babula, Matej"]
[Black "Winter, Ondrej"]
[Result "0-1"]
[TimeControl "90 min per 40 moves + 15 min + 30 sec / move from move 1"]
[WhiteFideId "398322"]
[BlackFideId "23702192"]
[WhiteElo "1899"]
[BlackElo "2163"]

1. e4 {[%clk 01:30:57]} {[%emt 00:00:02]} d6 {[%clk 01:30:41]} {[%emt
00:00:18]} 2. d4 {[%clk 01:31:17]} {[%emt 00:00:10]} Nf6 {[%clk 01:31:03]}
{[%emt 00:00:08]} 3. Nc3 {[%clk 01:31:41]} {[%emt 00:00:07]} g6 {[%clk
01:31:27]} {[%emt 00:00:06]} 4. Be3 {[%clk 01:31:27]} {[%emt 00:00:44]} c6
{[%clk 01:31:35]} {[%emt 00:00:22]} 5. h3 {[%clk 01:31:02]} {[%emt 00:00:54]}
Bg7 {[%clk 01:30:15]} {[%emt 00:01:51]} 6. f4 {[%clk 01:28:44]} {[%emt
00:02:48]} O-O {[%clk 01:19:26]} {[%emt 00:11:20]} 7. Nf3 {[%clk 01:28:17]}
{[%emt 00:00:56]} Nbd7 {[%clk 01:12:24]} {[%emt 00:07:33]} 8. Bd3 {[%clk
01:26:50]} {[%emt 00:01:57]} Qc7 {[%clk 01:09:27]} {[%emt 00:03:26]} 9. O-O
{[%clk 01:19:23]} {[%emt 00:07:56]} e5 {[%clk 01:04:42]} {[%emt 00:05:17]} 10.
a4 {[%clk 01:13:03]} {[%emt 00:06:49]} a5 {[%clk 01:00:59]} {[%emt 00:04:13]}
11. Qd2 {[%clk 01:03:42]} {[%emt 00:09:50]} Nh5 {[%clk 00:53:31]} {[%emt
00:07:59]} 12. Ne2 {[%clk 00:50:23]} {[%emt 00:13:49]} Re8 {[%clk 00:50:36]}
{[%emt 00:03:25]} 13. g4 {[%clk 00:44:08]} {[%emt 00:06:45]} exf4 {[%clk
00:45:38]} {[%emt 00:05:28]} 14. Bxf4 {[%clk 00:41:12]} {[%emt 00:03:25]} Nxf4
{[%clk 00:43:34]} {[%emt 00:02:36]} 15. Qxf4 {[%clk 00:41:06]} {[%emt
00:00:34]} Nf8 {[%clk 00:41:48]} {[%emt 00:02:16]} 16. Ng5 {[%clk 00:36:18]}
{[%emt 00:05:19]} Re7 {[%clk 00:39:28]} {[%emt 00:02:50]} 17. Bc4 {[%clk
00:33:45]} {[%emt 00:03:03]} Ne6 {[%clk 00:39:22]} {[%emt 00:00:36]} 18. Nxe6
{[%clk 00:33:30]} {[%emt 00:00:46]} Bxe6 {[%clk 00:39:42]} {[%emt 00:00:09]} 19.
Bxe6 {[%clk 00:33:09]} {[%emt 00:00:51]} Rxe6 {[%clk 00:37:52]} {[%emt
00:02:20]} 20. c3 {[%clk 00:30:24]} {[%emt 00:03:15]} Rae8 {[%clk 00:38:18]}
{[%emt 00:00:05]} 21. Ng3 {[%clk 00:30:08]} {[%emt 00:00:44]} c5 {[%clk
00:38:15]} {[%emt 00:00:33]} 22. dxc5 {[%clk 00:17:11]} {[%emt 00:13:28]} Be5
{[%clk 00:33:35]} {[%emt 00:05:10]} 23. Qf2 {[%clk 00:14:27]} {[%emt 00:03:13]}
dxc5 {[%clk 00:33:23]} {[%emt 00:00:42]} 24. Kg2 {[%clk 00:12:52]} {[%emt
00:02:06]} Bxg3 {[%clk 00:29:00]} {[%emt 00:04:53]} 25. Qxg3 {[%clk 00:13:15]}
{[%emt 00:00:06]} Qxg3+ {[%clk 00:29:25]} {[%emt 00:00:06]} 26. Kxg3 {[%clk
00:13:40]} {[%emt 00:00:05]} Rxe4 {[%clk 00:29:51]} {[%emt 00:00:03]} 27. Rad1
{[%clk 00:11:09]} {[%emt 00:03:01]} R8e7 {[%clk 00:24:18]} {[%emt 00:06:03]} 28.
Rd5 {[%clk 00:10:03]} {[%emt 00:01:37]} b6 {[%clk 00:18:12]} {[%emt 00:06:36]}
29. Rd6 {[%clk 00:09:40]} {[%emt 00:00:53]} R4e6 {[%clk 00:18:34]} {[%emt
00:00:09]} 30. Rf6 {[%clk 00:09:48]} {[%emt 00:00:21]} Kg7 {[%clk 00:18:01]}
{[%emt 00:01:03]} 31. g5 {[%clk 00:08:34]} {[%emt 00:01:44]} Rxd6 {[%clk
00:17:46]} {[%emt 00:00:45]} 32. Rxd6 {[%clk 00:09:00]} {[%emt 00:00:04]} Re6
{[%clk 00:18:11]} {[%emt 00:00:05]} 33. Rd7 {[%clk 00:05:09]} {[%emt 00:04:21]}
Re2 {[%clk 00:17:52]} {[%emt 00:00:49]} 34. b4 {[%clk 00:04:24]} {[%emt
00:01:16]} Re3+ {[%clk 00:15:06]} {[%emt 00:03:15]} 35. Kg2 {[%clk 00:03:27]}
{[%emt 00:01:26]} cxb4 {[%clk 00:13:48]} {[%emt 00:01:48]} 36. cxb4 {[%clk
00:03:52]} {[%emt 00:00:05]} axb4 {[%clk 00:13:07]} {[%emt 00:01:12]} 37. Rd4
{[%clk 00:03:20]} {[%emt 00:01:02]} Rb3 {[%clk 00:13:24]} {[%emt 00:00:13]} 38.
Rd6 {[%clk 00:03:34]} {[%emt 00:00:15]} Ra3 {[%clk 00:13:42]} {[%emt 00:00:13]}
39. Rxb6 {[%clk 00:03:45]} {[%emt 00:00:19]} Rxa4 {[%clk 00:14:04]} {[%emt
00:00:07]} 40. h4 {[%clk 00:01:53]} {[%emt 00:02:23]} h6 {[%clk 00:10:33]}
{[%emt 00:04:00]} 41. Kg3 {[%clk 00:00:49]} {[%emt 00:01:35]} Ra3+ {[%clk
00:10:00]} {[%emt 00:01:03]} 42. Kf4 {[%clk 00:14:59]} {[%emt 00:01:49]} Rh3
{[%clk 00:24:46]} {[%emt 00:01:15]} 43. Kg4 {[%clk 00:15:08]} {[%emt 00:00:21]}
Rb3 {[%clk 00:25:11]} {[%emt 00:00:05]} 44. gxh6+ {[%clk 00:11:28]} {[%emt
00:04:10]} Kxh6 {[%clk 00:25:28]} {[%emt 00:00:13]} 45. h5 {[%clk 00:11:49]}
{[%emt 00:00:09]} Rb1 {[%clk 00:23:53]} {[%emt 00:02:06]} 46. hxg6 {[%clk
00:12:11]} {[%emt 00:00:07]} fxg6 {[%clk 00:24:18]} {[%emt 00:00:06]} 47. Rb5
{[%clk 00:10:55]} {[%emt 00:01:45]} b3 {[%clk 00:24:40]} {[%emt 00:00:08]} 48.
Kg3 {[%clk 00:11:20]} {[%emt 00:00:05]} Kg7 {[%clk 00:23:33]} {[%emt 00:01:37]}
49. Rb6 {[%clk 00:11:19]} {[%emt 00:00:31]} Kf7 {[%clk 00:23:13]} {[%emt
00:00:51]} 50. Kg2 {[%clk 00:08:39]} {[%emt 00:03:10]} Kg7 {[%clk 00:22:44]}
{[%emt 00:00:58]} 51. Kf2 {[%clk 00:08:53]} {[%emt 00:00:16]} Kh6 {[%clk
00:23:03]} {[%emt 00:00:11]} 52. Rb5 {[%clk 00:09:17]} {[%emt 00:00:06]} g5
{[%clk 00:23:29]} {[%emt 00:00:04]} 53. Kg2 {[%clk 00:09:25]} {[%emt 00:00:21]}
Kh5 {[%clk 00:23:51]} {[%emt 00:00:08]} 54. Rb4 {[%clk 00:09:51]} {[%emt
00:00:05]} Kg6 {[%clk 00:24:16]} {[%emt 00:00:05]} 55. Rb5 {[%clk 00:09:36]}
{[%emt 00:00:46]} Kf6 {[%clk 00:24:38]} {[%emt 00:00:08]} 56. Kf2 {[%clk
00:08:56]} {[%emt 00:01:09]} Kg6 {[%clk 00:24:28]} {[%emt 00:00:40]} 57. Kg2
{[%clk 00:09:21]} {[%emt 00:00:04]} Kh5 {[%clk 00:24:54]} {[%emt 00:00:05]} 58.
Rb4 {[%clk 00:09:44]} {[%emt 00:00:07]} Kg6 {[%clk 00:22:00]} {[%emt 00:03:23]}
59. Rb5 {[%clk 00:09:46]} {[%emt 00:00:28]} Kf6 {[%clk 00:22:17]} {[%emt
00:00:13]} 60. Kf2 {[%clk 00:09:42]} {[%emt 00:00:35]} g4 {[%clk 00:21:35]}
{[%emt 00:01:12]} 61. Rb4 {[%clk 00:09:25]} {[%emt 00:00:47]} Kf5 {[%clk
00:20:42]} {[%emt 00:01:23]} 62. Kg2 {[%clk 00:09:47]} {[%emt 00:00:07]} Kg5
{[%clk 00:16:12]} {[%emt 00:05:00]} 63. Kf2 {[%clk 00:10:07]} {[%emt 00:00:11]}
Kh4 {[%clk 00:16:33]} {[%emt 00:00:08]} 0-1

[Event "Polofinale MCR junioru 2023"]
[Site "Czech Republic"]
[Date "2023.11.13"]
[Round "3.15"]
[White "Vylicil, Adam"]
[Black "Janous, Marek"]
[Result "1/2-1/2"]
[TimeControl "90 min per 40 moves + 15 min + 30 sec / move from move 1"]
[WhiteFideId "23717556"]
[BlackFideId "23709650"]
[WhiteElo "1896"]
[BlackElo "2098"]

1. d4 {[%clk 01:30:58]} {[%emt 00:00:02]} d5 {[%clk 01:30:39]} {[%emt
00:00:22]} 2. c4 {[%clk 01:29:49]} {[%emt 00:01:39]} e6 {[%clk 01:31:02]}
{[%emt 00:00:06]} 3. Nf3 {[%clk 01:30:10]} {[%emt 00:00:09]} Nf6 {[%clk
01:31:26]} {[%emt 00:00:06]} 4. Nc3 {[%clk 01:30:39]} {[%emt 00:00:01]} dxc4
{[%clk 01:31:51]} {[%emt 00:00:06]} 5. e3 {[%clk 01:25:37]} {[%emt 00:05:32]}
a6 {[%emt 00:00:43]} 6. a4 c5 {[%clk 01:26:36]} {[%emt 00:05:31]} 7. Bxc4
{[%clk 01:26:28]} {[%emt 00:00:09]} Nc6 {[%clk 01:26:40]} {[%emt 00:00:25]} 8.
O-O {[%clk 01:26:29]} {[%emt 00:00:30]} Be7 {[%clk 01:24:54]} {[%emt 00:02:16]}
9. Qe2 {[%clk 01:15:57]} {[%emt 00:11:03]} cxd4 {[%clk 01:20:21]} {[%emt
00:05:02]} 10. Rd1 {[%clk 01:14:15]} {[%emt 00:02:12]} d3 {[%clk 01:19:25]}
{[%emt 00:01:26]} 11. Bxd3 {[%clk 01:05:04]} {[%emt 00:09:41]} Qc7 {[%emt
00:25:48]} 12. Nd4 {[%clk 00:48:01]} {[%emt 00:06:08]} Ne5 {[%clk 00:56:45]}
{[%emt 00:09:16]} 13. Bc2 {[%clk 00:44:12]} {[%emt 00:04:20]} Neg4 {[%clk
00:51:47]} {[%emt 00:05:27]} 14. g3 {[%clk 00:41:20]} {[%emt 00:03:22]} h5
{[%clk 00:50:31]} {[%emt 00:01:47]} 15. h3 {[%clk 00:37:14]} {[%emt 00:04:37]}
Nh6 {[%clk 00:49:11]} {[%emt 00:01:48]} 16. e4 {[%clk 00:31:58]} {[%emt
00:05:47]} e5 {[%clk 00:14:27]} {[%emt 00:35:14]} 17. Nf5 {[%clk 00:31:52]}
{[%emt 00:00:35]} Nxf5 {[%clk 00:13:29]} {[%emt 00:01:29]} 18. exf5 {[%clk
00:32:15]} {[%emt 00:00:08]} Bd7 {[%clk 00:11:36]} {[%emt 00:02:22]} 19. Re1
{[%clk 00:26:42]} {[%emt 00:06:03]} O-O-O {[%clk 00:11:30]} {[%emt 00:00:36]}
20. Be3 {[%clk 00:24:21]} {[%emt 00:02:52]} Bc6 {[%clk 00:09:28]} {[%emt
00:02:31]} 21. a5 {[%clk 00:21:35]} {[%emt 00:03:17]} Nd7 {[%clk 00:08:55]}
{[%emt 00:01:03]} 22. Rec1 {[%clk 00:19:53]} {[%emt 00:02:12]} Kb8 {[%clk
00:07:36]} {[%emt 00:01:47]} 23. Be4 {[%clk 00:14:59]} {[%emt 00:05:24]} Nc5
{[%clk 00:05:16]} {[%emt 00:02:51]} 24. Bxc5 {[%clk 00:13:11]} {[%emt
00:02:18]} Bxc5 {[%clk 00:05:35]} {[%emt 00:00:11]} 25. Bxc6 {[%clk 00:12:50]}
{[%emt 00:00:51]} bxc6 {[%clk 00:04:51]} {[%emt 00:01:13]} 26. Ne4 {[%clk
00:11:33]} {[%emt 00:01:47]} Bd4 {[%clk 00:04:24]} {[%emt 00:00:57]} 27. Qxa6
{[%clk 00:11:09]} {[%emt 00:00:55]} Rc8 {[%clk 00:03:36]} {[%emt 00:01:18]} 28.
Rc4 {[%clk 00:08:44]} {[%emt 00:02:55]} Qa7 {[%clk 00:03:14]} {[%emt 00:00:51]}
29. Qxa7+ {[%clk 00:04:28]} {[%emt 00:04:47]} Kxa7 {[%clk 00:03:01]} {[%emt
00:00:43]} 30. Rac1 {[%clk 00:03:19]} {[%emt 00:01:38]} Bxb2 {[%clk 00:00:58]}
{[%emt 00:02:34]} 31. R1c2 {[%clk 00:03:35]} {[%emt 00:00:14]} Ba3 {[%clk
00:00:38]} {[%emt 00:00:49]} 32. Rxc6 {[%clk 00:02:37]} {[%emt 00:01:29]} Rxc6
{[%clk 00:00:52]} {[%emt 00:00:17]} 33. Rxc6 {[%clk 00:03:02]} {[%emt
00:00:05]} Kb7 {[%clk 00:01:16]} {[%emt 00:00:06]} 34. Rb6+ {[%clk 00:01:08]}
{[%emt 00:02:23]} Kc7 {[%clk 00:00:47]} {[%emt 00:00:59]} 35. Rb3 {[%clk
00:01:07]} {[%emt 00:00:31]} Be7 {[%clk 00:01:12]} {[%emt 00:00:05]} 36. a6
{[%clk 00:00:58]} {[%emt 00:00:39]} Rb8 {[%clk 00:01:36]} {[%emt 00:00:06]} 37.
Rc3+ {[%clk 00:00:39]} {[%emt 00:00:49]} Kb6 {[%clk 00:02:01]} {[%emt
00:00:05]} 38. Rb3+ {[%clk 00:00:41]} {[%emt 00:00:28]} Ka7 {[%clk 00:02:22]}
{[%emt 00:00:08]} 39. Rd3 {[%clk 00:00:34]} {[%emt 00:00:37]} Kxa6 {[%clk
00:02:23]} {[%emt 00:00:30]} 40. Rd7 {[%clk 00:00:39]} {[%emt 00:00:25]} Rb7
{[%clk 00:02:37]} {[%emt 00:00:16]} 41. Rxb7 {[%clk 00:14:23]} {[%emt
00:02:16]} 1/2-1/2

[Event "Polofinale MCR junioru 2023"]
[Site "Czech Republic"]
[Date "2023.11.13"]
[Round "3.16"]
[White "Fizerova, Lucie"]
[Black "Bezdek, Tomas"]
[Result "1/2-1/2"]
[TimeControl "90 min per 40 moves + 15 min + 30 sec / move from move 1"]
[WhiteFideId "385115"]
[BlackFideId "23733551"]
[WhiteElo "1886"]
[BlackElo "2078"]

1. e4 {[%clk 01:30:56]} {[%emt 00:00:03]} d5 {[%clk 01:30:56]} {[%emt
00:00:05]} 2. exd5 {[%clk 01:31:08]} {[%emt 00:00:18]} Nf6 {[%clk 01:31:19]}
{[%emt 00:00:07]} 3. d4 {[%clk 01:31:04]} {[%emt 00:00:34]} Nxd5 {[%clk
01:31:37]} {[%emt 00:00:12]} 4. c4 {[%clk 01:30:14]} {[%emt 00:01:21]} Nb6
{[%clk 01:31:52]} {[%emt 00:00:15]} 5. Nc3 {[%clk 01:29:41]} {[%emt 00:01:02]}
g6 {[%clk 01:32:13]} {[%emt 00:00:09]} 6. h3 {[%clk 01:28:54]} {[%emt
00:01:17]} Bg7 {[%clk 01:32:23]} {[%emt 00:00:19]} 7. Nf3 {[%clk 01:29:09]}
{[%emt 00:00:15]} O-O {[%clk 01:32:43]} {[%emt 00:00:11]} 8. Be3 {[%clk
01:28:09]} {[%emt 00:01:30]} Nc6 {[%clk 01:22:05]} {[%emt 00:11:07]} 9. Rc1
{[%clk 01:22:21]} {[%emt 00:06:19]} Re8 {[%clk 01:18:14]} {[%emt 00:04:21]} 10.
Be2 {[%clk 01:19:29]} {[%emt 00:03:21]} e5 {[%clk 00:59:11]} {[%emt 00:19:34]}
11. d5 {[%clk 01:14:18]} {[%emt 00:05:41]} Ne7 {[%clk 00:58:59]} {[%emt
00:00:42]} 12. O-O {[%clk 01:11:31]} {[%emt 00:03:18]} Nd7 {[%clk 00:44:43]}
{[%emt 00:14:46]} 13. Bd2 {[%clk 00:58:36]} {[%emt 00:13:25]} Nf5 {[%clk
00:43:13]} {[%emt 00:01:59]} 14. Ne4 {[%clk 00:57:12]} {[%emt 00:01:54]} b6
{[%clk 00:41:01]} {[%emt 00:02:42]} 15. Bb4 {[%clk 00:53:45]} {[%emt 00:03:57]}
Nf6 {[%clk 00:39:58]} {[%emt 00:01:33]} 16. Bd3 {[%clk 00:50:12]} {[%emt
00:04:04]} Nxe4 {[%clk 00:35:18]} {[%emt 00:05:10]} 17. Bxe4 {[%clk 00:50:32]}
{[%emt 00:00:10]} Nd6 {[%clk 00:35:44]} {[%emt 00:00:03]} 18. Bb1 {[%clk
00:45:31]} {[%emt 00:05:31]} e4 {[%clk 00:32:56]} {[%emt 00:03:18]} 19. Nd4
{[%clk 00:44:19]} {[%emt 00:01:43]} Qg5 {[%clk 00:32:01]} {[%emt 00:01:25]} 20.
f4 {[%clk 00:38:58]} {[%emt 00:05:50]} Qh6 {[%clk 00:13:42]} {[%emt 00:18:48]}
21. Bxd6 {[%clk 00:33:56]} {[%emt 00:05:33]} cxd6 {[%clk 00:13:39]} {[%emt
00:00:35]} 22. Nb5 {[%clk 00:34:02]} {[%emt 00:00:24]} Re7 {[%clk 00:08:30]}
{[%emt 00:05:38]} 23. b3 {[%clk 00:27:07]} {[%emt 00:07:25]} e3 {[%clk
00:06:59]} {[%emt 00:02:01]} 24. Qe2 {[%clk 00:27:07]} {[%emt 00:00:31]} Bf5
{[%clk 00:05:34]} {[%emt 00:01:54]} 25. Nxd6 {[%clk 00:25:01]} {[%emt
00:02:37]} Bxb1 {[%clk 00:05:58]} {[%emt 00:00:06]} 26. Rxb1 {[%clk 00:25:24]}
{[%emt 00:00:07]} Rd8 {[%clk 00:03:59]} {[%emt 00:02:28]} 27. Nb5 {[%clk
00:25:30]} {[%emt 00:00:25]} a6 {[%clk 00:03:39]} {[%emt 00:00:51]} 28. Na3
{[%clk 00:25:42]} {[%emt 00:00:18]} Re4 {[%clk 00:03:52]} {[%emt 00:00:15]} 29.
Nc2 {[%clk 00:23:20]} {[%emt 00:02:53]} Rxf4 {[%clk 00:03:50]} {[%emt
00:00:33]} 30. Rxf4 {[%clk 00:22:42]} {[%emt 00:01:08]} Qxf4 {[%clk 00:04:14]}
{[%emt 00:00:06]} 31. Qxe3 {[%clk 00:22:31]} {[%emt 00:00:41]} Qf5 {[%clk
00:04:05]} {[%emt 00:00:39]} 32. Qf2 {[%clk 00:21:03]} {[%emt 00:01:58]} Qd3
{[%clk 00:03:51]} {[%emt 00:00:44]} 33. Rf1 {[%clk 00:20:18]} {[%emt 00:01:15]}
f5 {[%emt 00:02:42]} 34. Nb4 {[%clk 00:19:08]} Qc3 {[%clk 00:02:47]} {[%emt
00:01:03]} 35. Nc6 {[%clk 00:18:42]} {[%emt 00:00:56]} Re8 {[%clk 00:02:46]}
{[%emt 00:00:30]} 36. Kh1 {[%clk 00:17:18]} {[%emt 00:01:55]} Re3 {[%clk
00:01:46]} {[%emt 00:01:30]} 37. Qf4 {[%clk 00:15:39]} {[%emt 00:02:08]} Bf8
{[%clk 00:01:17]} {[%emt 00:00:59]} 38. Qh4 {[%clk 00:06:38]} 1/2-1/2

[Event "Polofinale MCR junioru 2023"]
[Site "Czech Republic"]
[Date "2023.11.13"]
[Round "3.17"]
[White "Steinbauer, Sebastian"]
[Black "Bohacek, Jan Andrej"]
[Result "0-1"]
[TimeControl "90 min per 40 moves + 15 min + 30 sec / move from move 1"]
[WhiteFideId "399272"]
[BlackFideId "23727357"]
[WhiteElo "1869"]
[BlackElo "2066"]

1. e4 {[%clk 01:30:58]} {[%emt 00:00:02]} c6 {[%clk 01:30:38]} {[%emt
00:00:22]} 2. d4 {[%clk 01:31:23]} {[%emt 00:00:05]} d5 {[%clk 01:31:04]}
{[%emt 00:00:03]} 3. e5 {[%clk 01:31:50]} {[%emt 00:00:03]} c5 {[%clk
01:31:30]} {[%emt 00:00:04]} 4. dxc5 {[%clk 01:32:13]} {[%emt 00:00:07]} e6
{[%clk 01:31:53]} {[%emt 00:00:07]} 5. Nf3 {[%clk 01:32:28]} {[%emt 00:00:16]}
Bxc5 {[%clk 01:31:38]} {[%emt 00:00:45]} 6. a3 {[%clk 01:32:49]} {[%emt
00:00:09]} f6 {[%clk 01:30:51]} {[%emt 00:01:17]} 7. b4 {[%clk 01:32:27]}
{[%emt 00:00:52]} Be7 {[%clk 01:30:07]} {[%emt 00:01:13]} 8. Bb2 {[%clk
01:32:37]} {[%emt 00:00:21]} a5 {[%clk 01:28:59]} {[%emt 00:01:38]} 9. b5
{[%clk 01:32:05]} {[%emt 00:01:02]} Nd7 {[%clk 01:28:41]} {[%emt 00:00:48]} 10.
c4 {[%clk 01:31:30]} {[%emt 00:01:05]} Nxe5 {[%clk 01:28:01]} {[%emt 00:01:10]}
11. Nxe5 {[%clk 01:31:37]} {[%emt 00:00:23]} fxe5 {[%clk 01:28:09]} {[%emt
00:00:21]} 12. cxd5 {[%clk 01:30:43]} {[%emt 00:01:25]} Nf6 {[%clk 01:28:14]}
{[%emt 00:00:24]} 13. Bxe5 {[%clk 01:28:08]} {[%emt 00:03:06]} Qxd5 {[%clk
01:28:25]} {[%emt 00:00:19]} 14. Qxd5 {[%clk 01:28:22]} {[%emt 00:00:16]} exd5
{[%clk 01:28:48]} {[%emt 00:00:07]} 15. Bd3 {[%clk 01:28:04]} {[%emt 00:00:47]}
Be6 {[%clk 01:28:38]} {[%emt 00:00:40]} 16. O-O {[%clk 01:27:51]} {[%emt
00:00:44]} O-O {[%clk 01:22:39]} {[%emt 00:06:28]} 17. Nd2 {[%clk 01:27:03]}
{[%emt 00:01:20]} Nd7 {[%clk 01:11:56]} {[%emt 00:11:13]} 18. Bd4 {[%clk
01:27:09]} {[%emt 00:00:23]} Rfe8 {[%clk 01:01:41]} {[%emt 00:10:45]} 19. Nf3
{[%clk 01:26:45]} {[%emt 00:00:54]} Nc5 {[%clk 00:57:25]} {[%emt 00:04:46]} 20.
Bc2 {[%clk 01:25:26]} {[%emt 00:01:49]} Bg4 {[%clk 00:49:26]} {[%emt 00:08:29]}
21. Ne5 {[%clk 01:18:40]} {[%emt 00:07:16]} Be2 {[%clk 00:48:16]} {[%emt
00:01:40]} 22. Rfb1 {[%clk 01:09:39]} {[%emt 00:09:32]} Ne6 {[%clk 00:34:03]}
{[%emt 00:14:42]} 23. Be3 {[%clk 01:08:54]} {[%emt 00:01:15]} Bf6 {[%clk
00:31:13]} {[%emt 00:03:20]} 24. f4 {[%clk 01:09:12]} {[%emt 00:00:13]} d4
{[%clk 00:27:44]} {[%emt 00:03:59]} 25. Bd2 {[%clk 01:09:04]} {[%emt 00:00:38]}
Nc5 {[%clk 00:25:42]} {[%emt 00:02:31]} 26. Bb3+ {[%clk 01:02:30]} {[%emt
00:07:05]} Nxb3 {[%clk 00:25:44]} {[%emt 00:00:28]} 27. Rxb3 {[%clk 01:02:56]}
{[%emt 00:00:03]} Bxe5 {[%clk 00:22:50]} {[%emt 00:03:24]} 28. fxe5 {[%clk
01:03:16]} {[%emt 00:00:10]} Rxe5 {[%clk 00:22:31]} {[%emt 00:00:49]} 29. a4
{[%clk 01:03:27]} {[%emt 00:00:19]} Rc5 {[%clk 00:21:32]} {[%emt 00:01:29]} 30.
Re1 {[%clk 01:02:28]} {[%emt 00:01:30]} d3 {[%clk 00:21:39]} {[%emt 00:00:23]}
31. Rc3 {[%clk 01:02:43]} {[%emt 00:00:15]} Rxc3 {[%clk 00:19:51]} {[%emt
00:02:17]} 32. Bxc3 {[%clk 01:03:08]} {[%emt 00:00:05]} Rc8 {[%clk 00:17:21]}
{[%emt 00:03:01]} 33. Bxa5 {[%clk 01:01:48]} {[%emt 00:01:50]} b6 {[%clk
00:11:15]} {[%emt 00:06:36]} 34. Bb4 {[%clk 01:02:11]} {[%emt 00:00:07]} Rc4
{[%clk 00:11:28]} {[%emt 00:00:17]} 35. Rb1 {[%clk 01:01:36]} {[%emt 00:01:04]}
Rxb4 {[%clk 00:08:32]} {[%emt 00:03:26]} 36. Rxb4 {[%clk 01:02:00]} {[%emt
00:00:06]} d2 {[%clk 00:08:49]} {[%emt 00:00:13]} 37. Rd4 {[%clk 01:02:27]}
{[%emt 00:00:03]} d1=Q+ {[%clk 00:09:07]} {[%emt 00:00:13]} 38. Rxd1 {[%clk
01:02:53]} {[%emt 00:00:04]} Bxd1 {[%clk 00:09:31]} {[%emt 00:00:06]} 39. a5
{[%clk 01:03:19]} {[%emt 00:00:04]} Bb3 {[%clk 00:09:50]} {[%emt 00:00:12]} 40.
axb6 {[%clk 01:03:19]} {[%emt 00:00:30]} Bd5 {[%clk 00:10:08]} {[%emt
00:00:12]} 41. Kf2 {[%clk 01:03:21]} {[%emt 00:00:27]} Kf7 {[%clk 00:10:15]}
{[%emt 00:00:23]} 42. g4 {[%clk 01:03:45]} {[%emt 00:00:06]} Ke6 {[%clk
00:10:05]} {[%emt 00:00:40]} 43. h4 {[%clk 01:03:08]} {[%emt 00:01:07]} Kd6
{[%clk 00:05:48]} {[%emt 00:04:47]} 44. Ke3 {[%clk 01:03:04]} {[%emt 00:00:34]}
Kc5 {[%clk 00:05:26]} {[%emt 00:00:52]} 45. Kf4 {[%clk 01:03:06]} {[%emt
00:00:28]} Kxb6 {[%clk 00:04:38]} {[%emt 00:01:18]} 46. h5 {[%clk 01:02:33]}
{[%emt 00:01:03]} Kxb5 {[%clk 00:03:02]} {[%emt 00:02:06]} 47. g5 {[%clk
01:02:55]} {[%emt 00:00:08]} Bf7 {[%clk 00:02:20]} {[%emt 00:01:11]} 48. h6
{[%clk 01:02:38]} {[%emt 00:00:48]} gxh6 {[%emt 00:00:22]} 0-1

[Event "Polofinale MCR junioru 2023"]
[Site "Czech Republic"]
[Date "2023.11.13"]
[Round "3.18"]
[White "Mrazek, Roman"]
[Black "Hozda, Max"]
[Result "1/2-1/2"]
[TimeControl "90 min per 40 moves + 15 min + 30 sec / move from move 1"]
[WhiteFideId "23707062"]
[BlackFideId "23725958"]
[WhiteElo "1866"]
[BlackElo "2045"]

1. e4 {[%clk 01:30:59]} {[%emt 01:40:22]} Nf6 {[%clk 01:26:53]} {[%emt
00:04:08]} 2. e5 {[%clk 01:31:14]} {[%emt 00:00:15]} Nd5 {[%clk 01:27:18]}
{[%emt 00:00:05]} 3. d4 {[%clk 01:31:32]} {[%emt 00:00:11]} d6 {[%clk
01:27:36]} {[%emt 00:00:13]} 4. c4 {[%clk 01:31:49]} {[%emt 00:00:12]} Nb6
{[%clk 01:28:00]} {[%emt 00:00:06]} 5. f4 {[%clk 01:32:06]} {[%emt 00:00:13]}
Bf5 {[%clk 01:28:04]} {[%emt 00:00:25]} 6. Nc3 {[%clk 01:32:19]} {[%emt
00:00:18]} e6 {[%clk 01:28:12]} {[%emt 00:00:23]} 7. Be3 {[%clk 01:32:04]}
{[%emt 00:00:43]} dxe5 {[%clk 01:26:20]} {[%emt 00:02:22]} 8. fxe5 {[%clk
01:32:27]} {[%emt 00:00:07]} Nc6 {[%clk 01:26:27]} {[%emt 00:00:23]} 9. Nf3
{[%clk 01:32:34]} {[%emt 00:00:23]} Be7 {[%clk 01:26:26]} {[%emt 00:00:31]} 10.
Be2 {[%clk 01:32:33]} {[%emt 00:00:31]} O-O {[%clk 01:26:06]} {[%emt 00:00:49]}
11. O-O {[%clk 01:32:53]} {[%emt 00:00:10]} f6 {[%clk 01:26:10]} {[%emt
00:00:27]} 12. exf6 {[%clk 01:33:09]} {[%emt 00:00:13]} Bxf6 {[%clk 01:26:34]}
{[%emt 00:00:06]} 13. Qd2 {[%clk 01:33:30]} {[%emt 00:00:09]} Qe7 {[%clk
01:18:23]} {[%emt 00:08:41]} 14. Rad1 {[%clk 01:33:45]} {[%emt 00:00:15]} Rad8
{[%clk 01:18:31]} {[%emt 00:00:22]} 15. Kh1 {[%clk 01:33:13]} {[%emt 00:01:02]}
Kh8 {[%clk 01:14:10]} {[%emt 00:04:51]} 16. Qc1 {[%clk 01:29:59]} {[%emt
00:03:44]} Rd7 {[%clk 01:07:47]} {[%emt 00:06:54]} 17. d5 {[%clk 01:13:11]}
{[%emt 00:17:18]} Na5 {[%clk 00:23:02]} {[%emt 00:45:15]} 18. b3 {[%clk
00:52:55]} {[%emt 00:20:46]} Re8 {[%clk 00:07:25]} {[%emt 00:16:07]} 19. Nd4
{[%clk 00:47:22]} {[%emt 00:06:03]} c6 {[%clk 00:03:24]} {[%emt 00:04:31]} 20.
Nxf5 {[%emt 00:14:16]} exf5 {[%emt 00:00:04]} 21. Bxb6 {[%emt 00:00:02]} axb6
{[%emt 00:00:02]} 1/2-1/2